fUSD/lending_fUSD_20240105
["ID","MTS","AMOUNT","RATE_DAILY","PERIOD"]
[310270852,1704427832381,-250.0,0.00022569,2]
[310270853,1704427838011,-258.92139137,0.00022544,2]
[310270854,1704427838025,-2778.16419468,0.00022544,2]
[310270855,1704427838036,-151.87,0.00022567,2]
[310270856,1704427838045,-540.25124322,0.00022569,2]
[310270857,1704427838056,-162.03104992,0.0002257,2]
[310270858,1704427838065,-283.55433738,0.0002257,2]
[310270859,1704427838075,-161.18610091,0.00022583,2]
[310270860,1704427838084,-791.90470141,0.00022597,2]
[310270861,1704427838095,-283.55433734,0.00022617,2]
[310270862,1704427838104,-162.03104991,0.00022625,2]
[310270863,1704427838114,-791.90470141,0.00022628,2]
[310270864,1704427838124,-161.18610091,0.00022628,2]
[310270865,1704427838133,-791.90470141,0.00022658,2]
[310270866,1704427838142,-5320.62541449,0.00022664,2]
[310270867,1704427838152,-292.80107388,0.00022664,2]
[310270868,1704427838161,-256.95233542,0.00022664,2]
[310270869,1704427838171,-283.55433734,0.00022664,2]
[310270870,1704427838180,-1106.91,0.00022664,2]
[310270871,1704427838190,-164.32949861,0.00022665,2]
[310270872,1704427838200,-196.25088216,0.00022665,2]
[310270873,1704427838210,-1098.23,0.00022665,2]
[310270874,1704427838220,-155.3678245,0.00022666,2]
[310270875,1704427838231,-1054263.9214738,0.00022666,2]
[310270876,1704427838241,-322.19493019,0.00022667,2]
[310270877,1704427838255,-284.9548467,0.00022667,2]
[310270878,1704427838265,-238.12529264,0.00022667,2]
[310270879,1704427838275,-190.9440628,0.00022667,2]
[310270880,1704427838285,-241.6481428,0.00022667,2]
[310270881,1704427838294,-786.80666066,0.00022667,2]
[310270882,1704427838304,-155.28578435,0.00022667,2]
[310270883,1704427838313,-155.2593392,0.00022667,2]
[310270884,1704427838323,-630.19370879,0.00022667,2]
[310270885,1704427838333,-292.00868153,0.00022667,2]
[310270886,1704427838343,-887.32423175,0.00022667,2]
[310270887,1704427838352,-155.41125113,0.00022667,2]
[310270888,1704427838362,-488.73242178,0.00022667,2]
[310270889,1704427838372,-155.28188898,0.00022667,2]
[310270890,1704427838381,-155.53655727,0.00022667,2]
[310270891,1704427838391,-155.14409277,0.00022667,2]
[310270892,1704427838403,-155.38188479,0.00022667,2]
[310270893,1704427838413,-319.05403858,0.00022667,2]
[310270894,1704427838423,-371.70985186,0.00022667,2]
[310270895,1704427838433,-33287.6707948,0.00022667,2]
[310270896,1704427838444,-155.39662891,0.00022667,2]
[310270897,1704427838456,-262.52666332,0.00022667,2]
[310270898,1704427838466,-899.09976265,0.00022667,4]
[310270899,1704427838475,-155.51933077,0.00022667,2]
[310270900,1704427838484,-1776.90277835,0.00022667,2]
[310270901,1704427838494,-104263.11423629,0.00022667,2]
[310270902,1704427838506,-155.0,0.00022667,2]
[310270903,1704427838515,-1133.536065,0.00022667,2]
[310270904,1704427838524,-232.83801055,0.00022667,2]
[310270906,1704427838533,-239.48314456,0.00022667,2]
[310270908,1704427838544,-310.58612102,0.00022667,2]
[310270910,1704427838553,-234.00271587,0.00022667,2]
[310270912,1704427838563,-270.69843484,0.00022667,2]
[310270914,1704427838573,-155.60617536,0.00022667,2]
[310270916,1704427838582,-156.77777887,0.00022667,2]
[310270918,1704427838591,-4644.92257958,0.00022667,2]
[310270920,1704427838600,-155.30590937,0.00022667,2]
[310270922,1704427838609,-208.09016026,0.00022667,2]
[310270924,1704427838618,-235.59596062,0.00022667,2]
[310270926,1704427838628,-942.16953887,0.00022667,2]
[310270928,1704427838637,-155.22336036,0.00022667,2]
[310270930,1704427838646,-10492.4099566,0.00022667,2]
[310270932,1704427838657,-544.36477658,0.00022667,2]
[310270934,1704427838666,-11688.92867589,0.00022667,2]
[310270936,1704427838675,-327.93283653,0.00022667,2]
[310270939,1704427838685,-155.5489027,0.00022667,2]
[310270941,1704427838694,-282.70272373,0.00022667,2]
[310270943,1704427838703,-165.17961817,0.00022667,2]
[310270945,1704427838713,-155.28640053,0.00022667,2]
[310270947,1704427838722,-155.42172242,0.00022667,2]
[310270949,1704427838731,-385.39220614,0.00022667,2]
[310270951,1704427838740,-271.13525238,0.00022667,2]
[310270953,1704427838750,-155.28647767,0.00022667,2]
[310270955,1704427838759,-155.42863196,0.00022667,2]
[310270958,1704427838772,-155.27135911,0.00022667,2]
[310270960,1704427838782,-697.45830467,0.00022667,2]
[310270962,1704427838791,-155.29110697,0.00022667,2]
[310270964,1704427838801,-260.69177845,0.00022667,2]
[310270966,1704427838810,-160.89502532,0.00022667,2]
[310270968,1704427838819,-155.2,0.00022667,2]
[310270970,1704427838829,-19968.91992647,0.00022668,2]
[310270972,1704427838838,-161.18610091,0.00022674,2]
[310270974,1704427838847,-350.25883049,0.00022678,2]
[310270976,1704427838857,-162.03104991,0.0002268,2]
[310270978,1704427838866,-791.90470141,0.00022688,2]
[310270980,1704427838875,-161.66,0.0002269,2]
[310270982,1704427838885,-283.55433734,0.00022711,2]
[310270984,1704427838895,-791.90470141,0.00022718,2]
[310270986,1704427838908,-161.18610091,0.00022719,2]
[310270988,1704427838918,-162.03104991,0.00022735,2]
[310270990,1704427838927,-791.90470141,0.00022749,2]
[310270992,1704427838936,-283.55433734,0.00022759,2]
[310270994,1704427838946,-161.18610091,0.00022764,2]
[310270996,1704427838955,-183.56675736,0.00022771,2]
[310270998,1704427838964,-607.74,0.00022776,2]
[310271000,1704427838974,-791.90470141,0.00022779,2]
[310271002,1704427838983,-350.25883049,0.00022789,2]
[310271004,1704427838992,-162.03104991,0.0002279,2]
[310271006,1704427839001,-155.2,0.00022795,2]
[310271009,1704427839012,-162.03104992,0.000228,2]
[310271011,1704427839021,-283.55433734,0.00022806,2]
[310271013,1704427839030,-791.90470141,0.00022809,2]
[310271015,1704427839040,-161.18610091,0.00022809,2]
[310271017,1704427839049,-162.03104991,0.00022818,2]
[310271019,1704427839058,-250.0,0.00022822,2]
[310271021,1704427839068,-162.03104991,0.00022835,2]
[310271023,1704427839078,-791.90470141,0.00022839,2]
[310271025,1704427839087,-162.03104991,0.00022845,2]
[310271027,1704427839099,-283.55433734,0.00022853,2]
[310271029,1704427839108,-162.03104991,0.00022853,2]
[310271031,1704427839118,-161.18610091,0.00022855,2]
[310271033,1704427839127,-791.90470141,0.0002287,2]
[310271035,1704427839137,-162.03104991,0.00022871,2]
[310271037,1704427839146,-162.03104991,0.00022888,2]
[310271039,1704427839158,-1198.0595198,0.00022897,2]
[310271041,1704427839170,-244646.2985,0.000229,2]
[310271043,1704427839179,-162.03104992,0.000229,2]
[310271045,1704427839190,-162.03104991,0.000229,2]
[310271047,1704427839200,-283.55433734,0.000229,2]
[310271048,1704427839210,-161.18610091,0.000229,2]
[310271050,1704427839220,-791.90470141,0.000229,2]
[310271052,1704427839230,-950.1723238,0.000229,2]
[310271054,1704427839241,-188.82634143,0.000229,2]
[310271056,1704427839250,-350.25883049,0.000229,2]
[310271058,1704427839260,-345.29948224,0.000229,2]
[310271060,1704427839270,-247.91925395,0.000229,2]
[310271062,1704427839279,-1850.23800512,0.000229,2]
[310271065,1704427839289,-162.03104991,0.00022906,2]
[310271067,1704427839299,-155.2,0.00022922,2]
[310271069,1704427839308,-162.03104991,0.00022927,2]
[310271071,1704427839317,-162.03104991,0.00022953,2]
[310271073,1704427839328,-175.95,0.00022964,2]
[310271074,1704427839338,-151.0,0.00022979,2]
[310271076,1704427839347,-162.03104991,0.0002298,2]
[310271079,1704427839357,-150.0,0.00022999,2]
[310271080,1704427839367,-150.0,0.00022999,2]
[310271083,1704427839376,-150.0,0.00022999,2]
[310271085,1704427839386,-150.0,0.00022999,2]
[310271087,1704427839395,-150.0,0.00022999,2]
[310271088,1704427839406,-150.0,0.00022999,2]
[310271090,1704427839415,-150.0,0.00022999,2]
[310271093,1704427839426,-150.0,0.00022999,2]
[310271094,1704427839436,-150.0,0.00022999,2]
[310271096,1704427839445,-150.0,0.00022999,2]
[310271100,1704427839470,-7503903.36829041,0.00023,2]
[310271103,1704427839487,-685702.55390616,0.00023,2]
[310271105,1704427839499,-578914.19288253,0.00023,2]
[310271107,1704427839511,-4483.99999999,0.00023,2]
[310271112,1704427839549,-433218.86708509,0.00023,2]
[310271114,1704427839561,-1285.22235789,0.00023,2]
[310271117,1704427839573,-951.26132272,0.00023,2]
[310271123,1704427839622,-2697.71553036,0.00023,2]
[310271125,1704427839634,-110964.15925547,0.00023,2]
[310271148,1704427839837,-754.78797493,0.00023,2]
[310271150,1704427839850,-1039.42772959,0.00023,2]
[310271159,1704427839928,-574.46148922,0.00023,2]
[310271239,1704427840695,-454.54148249,0.00023,2]
[310271241,1704427840707,-500.0,0.00023,2]
[310271275,1704427841739,-205050.627893,0.00023,2]
[310271276,1704427841760,-1045.79908187,0.00023,2]
[310271281,1704427842977,-2003.51399994,0.00023,2]
[310271282,1704427843271,-1136.0779978,0.00023,2]
[310271283,1704427843414,-1500.0,0.00023,2]
[310271309,1704427862906,359.62041276,0.00022999,10]
[310271310,1704427943729,260.95470601,0.00022499,2]
[310271311,1704428126690,200.0,0.00022438,2]
[310271312,1704428151734,608.88,0.0002052,2]
[310271313,1704428241133,100000.0,0.00022465,2]
[310271314,1704428252695,175.81,0.00022,2]
[310271315,1704428261947,505.90551604,0.00022,2]
[310271316,1704428296666,1359.85,0.00022485,2]
[310271317,1704428341997,262.33,0.00022459,2]
[310271318,1704428373156,385.685,0.00022465,2]
[310271319,1704428380973,464.5955,0.00022465,2]
[310271320,1704428389252,228.33536775,0.00022466,2]
[310271321,1704428463772,2110.0688,0.00022465,2]
[310271322,1704428475911,1958.6679,0.00022465,2]
[310271323,1704428503103,162.13589043,0.00022439,2]
[310271324,1704428566522,364.64,0.00022177,2]
[310271325,1704428573959,840.0,0.00022354,2]
[310271326,1704428581700,250.0,0.00022354,2]
[310271327,1704428594688,199.79344679,0.00022466,2]
[310271328,1704428599669,951.79,0.00022396,2]
[310271329,1704428610448,578.43,0.00020469,2]
[310271330,1704428620883,1000.0,0.00022465,2]
[310271331,1704428800402,174.81926595,0.00022466,2]
[310271332,1704428826852,150.0,0.00022472,2]
[310271333,1704428866230,175.81,0.00021565,2]
[310271334,1704428867888,175.81,0.00022113,2]
[310271335,1704428876236,-600.0,0.00022512,2]
[310271336,1704428964143,150.0,0.00022,2]
[310271337,1704428970535,150.0,0.00022488,2]
[310271338,1704428971053,258.33493005,0.00022,2]
[310271339,1704428971542,150.0,0.00022382,2]
[310271341,1704428999260,89228.19,0.00029,30]
[310271342,1704429004887,166.74,0.00022348,2]
[310271343,1704429008272,6094.68,0.00029,30]
[310271344,1704429010761,152.96685775,0.00022466,2]
[310271376,1704429032126,-600.35308665,0.00022512,2]
[310271383,1704429032138,-380.39155196,0.00022513,2]
[310271393,1704429032176,-3096.93884709,0.00022513,2]
[310271400,1704429032200,-1937.77820977,0.00022513,2]
[310271412,1704429032292,-263.46627544,0.00022513,2]
[310271414,1704429032302,-18.49942456,0.0002253,2]
[310271417,1704429032315,-131.50057544,0.0002253,2]
[310271419,1704429032325,-272.2,0.00022532,2]
[310271421,1704429032334,-150.0,0.00022554,2]
[310271423,1704429032345,-2199.60450878,0.00022555,2]
[310271425,1704429032355,-155.33998278,0.00022555,2]
[310271427,1704429032365,-428.89619201,0.00022564,2]
[310271429,1704429032375,-1966.59628081,0.00022565,2]
[310271431,1704429032384,-27206.72577383,0.00022565,2]
[310271433,1704429032397,-718.14860685,0.00022565,2]
[310271435,1704429032412,-1187.70046747,0.00022565,2]
[310271440,1704429032472,-553.09839258,0.00022565,2]
[310271461,1704429038185,-1024598.24823307,0.00022565,2]
[310271462,1704429038199,-244904.5326,0.00022566,2]
[310271463,1704429038210,-150.0,0.00022645,2]
[310271464,1704429038222,-186.5099508,0.00022661,2]
[310271465,1704429038234,-578.43,0.00022733,2]
[310271466,1704429038245,-282.55537557,0.00022768,2]
[310271467,1704429038256,-25118.66033806,0.00022768,2]
[310271468,1704429038267,-788.28856651,0.00022998,2]
[310271469,1704429038279,-991.74373045,0.00022998,2]
[310271470,1704429038290,-701.2154551,0.00022998,2]
[310271471,1704429038302,-2961090.33994126,0.00023,2]
[310271472,1704429038314,-1302.89279692,0.00023,2]
[310271473,1704429038325,-3244709.95130267,0.00023,2]
[310271474,1704429038340,-685702.55390616,0.00023,2]
[310271475,1704429038354,-57009.2816838,0.00023,2]
[310271476,1704429038366,-931.13114601,0.00023,2]
[310271477,1704429038377,-200.0,0.00023,2]
[310271478,1704429038389,-957.86370592,0.00023,2]
[310271479,1704429038400,-155.2,0.00023049,2]
[310271480,1704429038411,-150.4869536,0.00023081,2]
[310271481,1704429038423,-155.2,0.00023177,2]
[310271482,1704429038434,-528.0,0.000232,2]
[310271483,1704429038445,-481.76,0.000232,2]
[310271484,1704429038458,-364.64,0.00023286,2]
[310271485,1704429038469,-155.2,0.00023304,2]
[310271486,1704429038480,-166.2,0.00023335,2]
[310271487,1704429038493,-407.27,0.00023356,2]
[310271488,1704429038504,-407.27,0.00023356,2]
[310271489,1704429038515,-951.79,0.00023374,2]
[310271490,1704429038527,-155.2,0.00023431,2]
[310271491,1704429038539,-161.66,0.00023512,2]
[310271492,1704429038557,-155.2,0.00023559,2]
[310271493,1704429038567,-155.2,0.00023686,2]
[310271494,1704429038579,-152.96685768,0.00023799,2]
[310271495,1704429038590,-155.2,0.00023813,2]
[310271496,1704429038602,-293.41,0.00024178,2]
[310271497,1704429038612,-293.41,0.00024178,2]
[310271498,1704429038624,-293.41,0.00024178,2]
[310271499,1704429038635,-161.66,0.00024335,2]
[310271500,1704429038647,-951.79,0.00024353,2]
[310271501,1704429038659,-364.64,0.00024395,2]
[310271502,1704429038671,-166.2,0.00024446,2]
[310271504,1704429038683,-250.0,0.00024658,2]
[310271507,1704429038694,-236.65931547,0.0002474,2]
[310271508,1704429038705,-578.43,0.00024997,2]
[310271510,1704429038716,-1580.1889945,0.00025,2]
[310271512,1704429038728,-430.0,0.00025,2]
[310271514,1704429038739,-507.31091902,0.00025,2]
[310271516,1704429038750,-155.30294817,0.00025,2]
[310271518,1704429038761,-304.00013169,0.00025,2]
[310271520,1704429038773,-152.96685768,0.00025133,2]
[310271523,1704429038784,-166.74,0.00025141,2]
[310271525,1704429038795,-840.0,0.00025148,2]
[310271527,1704429038805,-161.66,0.00025158,2]
[310271529,1704429038817,-200.0,0.00025243,2]
[310271531,1704429038828,-951.79,0.00025331,2]
[310271533,1704429038839,-364.64,0.00025504,2]
[310271536,1704429038850,-161.66,0.00025981,2]
[310271538,1704429038862,-150.0,0.00026079,2]
[310271540,1704429038874,-951.79,0.0002631,2]
[310271542,1704429038884,-11807.82590923,0.000264,2]
[310271544,1704429038895,-152.96685768,0.00026466,3]
[310271546,1704429038906,-364.64,0.00026612,2]
[310271548,1704429038917,-219.41014486,0.00027,2]
[310271550,1704429038928,-250.0,0.00027,3]
[310271551,1704429038939,-578.43,0.00027261,2]
[310271552,1704429038950,-951.79,0.00027288,2]
[310271553,1704429038961,-325.22221659,0.00027397,5]
[310271554,1704429038972,-155.0,0.00027397,2]
[310271555,1704429038983,-250.0,0.00027397,2]
[310271556,1704429038994,-186.63,0.00027397,2]
[310271557,1704429039007,-500.0,0.000274,2]
[310271558,1704429039019,-604.21721138,0.000275,4]
[310271559,1704429039030,-152.96685768,0.000278,3]
[310271560,1704429039042,-166.74,0.00027935,2]
[310271561,1704429039053,-840.0,0.00027943,2]
[310271562,1704429039066,-2249.28,0.00027945,2]
[310271563,1704429039078,-1100.53,0.00027945,2]
[310271564,1704429039089,-686.69000892,0.00028,2]
[310271565,1704429039100,-200.0,0.00028047,2]
[310271566,1704429039111,-951.79,0.00028267,2]
[310271567,1704429039122,-116349.0596311,0.00028509,2]
[310271568,1704429039135,-155.0,0.00028767,2]
[310271569,1704429039148,-186.63,0.00028822,2]
[310271570,1704429039159,-88405.72456606,0.00029,2]
[310271571,1704429039170,-300.0,0.00029,3]
[310271572,1704429039182,-152.96685768,0.00029133,4]
[310271573,1704429039193,-951.79,0.00029245,2]
[310271574,1704429039221,-578.43,0.00029525,2]
[310271575,1704429039235,-191.33518818,0.00029797,2]
[310271576,1704429039249,-274324.74791963,0.000298,2]
[310271577,1704429039345,-626378.94768121,0.000298,2]
[310271578,1704429039358,-65646.43711053,0.000299,2]
[310271579,1704429039371,-2298.13297596,0.0002996,2]
[310271580,1704429039383,-155.0,0.0003,2]
[310271581,1704429039397,-3423.81872806,0.0003,4]
[310271582,1704429039409,-194.05571782,0.0003,2]
[310271583,1704429039421,-1000.0,0.0003,2]
[310271584,1704429039433,-771.13349501,0.0003,4]
[310271585,1704429039446,-41742.87864424,0.0003,4]
[310271586,1704429039458,-689.70324588,0.0003,2]
[310271587,1704429039470,-460.70955367,0.0003,4]
[310271588,1704429039483,-46445.58785012,0.0003,4]
[310271589,1704429039508,-3108.7216652,0.0003,4]
[310271590,1704429039545,-8670.00000001,0.0003,4]
[310271626,1704429043329,-1028.92002322,0.0003,4]
[310271627,1704429043452,-1005.9999998,0.0003,4]
[310271628,1704429043560,-21607.52896632,0.0003,4]
[310271642,1704429046265,-278.24112876,0.00023356,2]
[310271643,1704429046434,-15.16887124,0.00023356,2]
[310271644,1704429046443,-584.11092084,0.00029999,2]
[310271645,1704429133382,2000.0,0.00022177,2]
[310271646,1704429134808,21115.6446,0.00022465,2]
[310271647,1704429144834,46149.6301,0.00022465,2]
[310271648,1704429162951,250.5234,0.00022465,2]
[310271649,1704429236404,2500.0,0.00022465,2]
[310271650,1704429317736,546.59471734,0.00022465,7]
[310271667,1704430232336,-937.11713582,0.00024459,2]
[310271668,1704430232445,-1202.912932,0.00024459,2]
[310271669,1704430232456,-326.10197027,0.0002446,2]
[310271670,1704430232465,-281.87873951,0.0002446,2]
[310271671,1704430232477,-1.09944821,0.0002446,2]
[310271672,1704430232486,-1580.1889945,0.00025,2]
[310271673,1704430232495,-387.5621547,0.00025,2]
[310271674,1704430232521,-1300.4378453,0.00025,2]
[310271675,1704430232533,-158.08945216,0.00025085,2]
[310271676,1704430232542,-712.48,0.00025186,2]
[310271677,1704430232551,-722.68,0.00026173,2]
[310271678,1704430232560,-731.85,0.00026175,2]
[310271679,1704430232570,-713.24,0.00026175,2]
[310271680,1704430232579,-712.89,0.00026178,2]
[310271681,1704430232588,-223.7,0.0002621,2]
[310271682,1704430232598,-300.0,0.00026221,2]
[310271683,1704430232607,-150.0,0.00026221,2]
[310271684,1704430232617,-664.0,0.00026222,2]
[310271685,1704430232626,-539.56,0.00026224,2]
[310271686,1704430232636,-804.47,0.00026236,2]
[310271687,1704430232646,-200.0,0.00026236,2]
[310271688,1704430232655,-721.86,0.00026254,2]
[310271689,1704430232664,-250.0,0.00026257,2]
[310271690,1704430232673,-15.54526179,0.00026278,2]
[310271716,1704430238468,-479.3,0.00024262,2]
[310271717,1704430238478,-150.0,0.00026232,2]
[310271718,1704430238487,-718.09473821,0.00026278,2]
[310271719,1704430238496,-727.47,0.00026278,2]
[310271720,1704430238506,-718.4,0.00026279,2]
[310271721,1704430238515,-719.68,0.0002628,2]
[310271722,1704430238528,-736.73,0.0002628,2]
[310271723,1704430238537,-731.04,0.00026281,2]
[310271724,1704430238547,-715.05,0.00026282,2]
[310271725,1704430238556,-713.55,0.00026378,2]
[310271726,1704430238565,-731.48,0.00026379,2]
[310271727,1704430238574,-732.12,0.0002638,2]
[310271728,1704430238583,-720.13,0.00026381,2]
[310271729,1704430238591,-419.74722213,0.00026382,2]
[310271730,1704430239042,-292.35277787,0.00026382,2]
[310271731,1704430239052,-731.51,0.00026383,2]
[310271732,1704430239061,-738.23,0.00026384,2]
[310271733,1704430239070,-716.87,0.00026385,2]
[310271734,1704430239079,-736.6,0.00026386,2]
[310271735,1704430239089,-158.08945214,0.00026408,2]
[310271736,1704430239098,-479.3,0.00026526,2]
[310271737,1704430239107,-709.83,0.00026995,2]
[310271738,1704430239116,-710.41,0.00026996,2]
[310271739,1704430239126,-719.29,0.00026997,2]
[310271740,1704430239135,-726.49,0.00026997,2]
[310271741,1704430239144,-721.8,0.00026997,2]
[310271742,1704430239153,-155.31624059,0.00026998,2]
[310271743,1704430239162,-250.0,0.00027,3]
[310271744,1704430239171,-539.56,0.00027202,2]
[310271745,1704430239180,-250.0,0.00027397,2]
[310271746,1704430239189,-336.0,0.00027421,2]
[310271747,1704430239198,-201.0,0.00027516,2]
[310271748,1704430239209,-158.08945214,0.00027731,2]
[310271749,1704430239218,-719.24,0.00027745,2]
[310271750,1704430239227,-917.1,0.00027945,2]
[310271751,1704430239237,-1874.4,0.00027945,2]
[310271752,1704430239246,-539.56,0.0002818,2]
[310271753,1704430239255,-156.85,0.00028232,2]
[310271754,1704430239264,-3915.47294537,0.00028399,2]
[310271755,1704430239274,-2336.0,0.000284,2]
[310271756,1704430239283,-27904.0,0.000284,2]
[310271757,1704430239292,-433.78415228,0.00028499,2]
[310271758,1704430239301,-1486.89806425,0.00028521,2]
[310271759,1704430239310,-725.06,0.00028557,2]
[310271760,1704430239320,-201.0,0.00028636,4]
[310271761,1704430239329,-156.85,0.00028702,2]
[310271762,1704430239338,-155.0,0.00028705,2]
[310271763,1704430239348,-479.3,0.00028789,2]
[310271764,1704430239357,-210.0,0.00028844,2]
[310271765,1704430239366,-310.16818974,0.00028955,2]
[310271766,1704430239378,-1176.72987451,0.00028955,2]
[310271767,1704430239388,-129007.34190617,0.00029,2]
[310271768,1704430239397,-300.0,0.00029,3]
[310271769,1704430239406,-1486.89806425,0.00029053,2]
[310271770,1704430239416,-158.08945214,0.00029054,2]
[310271771,1704430239425,-157.39326305,0.00029097,2]
[310271772,1704430239434,-539.56,0.00029159,2]
[310271773,1704430239443,-156.85,0.00029173,2]
[310271774,1704430239451,-1486.89806425,0.00029394,2]
[310271775,1704430239461,-664.0,0.000295,2]
[310271776,1704430239470,-366.16218034,0.00029577,2]
[310271777,1704430239479,-1234.18573038,0.00029609,2]
[310271778,1704430239488,-228512.51599646,0.00029642,2]
[310271780,1704430240977,-263.66478443,0.00028636,6]
[310271781,1704430240989,-129.31396989,0.00028636,6]
[310271782,1704430240999,-411.90033311,0.00029642,2]
[310271783,1704430241035,-23235.76849015,0.00029642,2]
[310271784,1704430241808,-186.64,0.00028885,2]
[310271785,1704430241818,-471.80290763,0.00029642,2]
[310271786,1704430241830,-6399.15254433,0.00029642,2]
[310271790,1704430243323,-352.24058426,0.00029642,2]
[310271791,1704430243665,-747.80120616,0.00029642,2]
[310271805,1704430246416,-1967.21591789,0.00028635,2]
[310271806,1704430246426,-6737.72443048,0.00029642,2]
[310271807,1704430246472,-333.231228,0.00029642,2]
[310271808,1704430246588,-768.06384375,0.00029642,2]
[310271809,1704430555145,1302.89279692,0.0003,120]
[310271810,1704430690610,291.72,0.00022177,2]
[310271811,1704430965909,465.25,0.00021858,2]
[310271817,1704431405952,441.98,0.00021395,2]
[310271818,1704431419078,236.65931547,0.00022,2]
[310271824,1704431431620,-164.39415996,0.00022797,2]
[310271825,1704431431630,-158.08945214,0.00022798,2]
[310271826,1704431431640,-243.7124879,0.000228,2]
[310271827,1704431431654,-89.8476121,0.000228,2]
[310271828,1704431431663,-158.08945214,0.00022849,2]
[310271829,1704431431673,-4475.90351577,0.00022897,2]
[310271830,1704431431683,-3702.00332613,0.00022898,2]
[310271831,1704431431725,-566.53126948,0.00022898,2]
[310271835,1704431437678,-3274.15040525,0.00022898,2]
[310271836,1704431437690,-788.28856651,0.00022898,2]
[310271837,1704431437700,-1000.0,0.00022899,2]
[310271838,1704431437709,-1229.07988028,0.00022899,2]
[310271839,1704431437718,-152.96685768,0.000229,2]
[310271840,1704431437727,-18383.44900752,0.000229,2]
[310271841,1704431437740,-73490.46559248,0.000229,2]
[310271842,1704431437750,-158.08945214,0.000229,2]
[310271843,1704431437759,-499.99,0.000229,2]
[310271844,1704431437768,-732.32436068,0.000229,2]
[310271845,1704431437778,-414.95338842,0.000229,2]
[310271846,1704431437788,-155.75479825,0.00022997,2]
[310271847,1704431437798,-536.24767748,0.00022997,2]
[310271848,1704431437807,-185.64047833,0.00022997,2]
[310271849,1704431437818,-683.8398576,0.00022998,2]
[310271850,1704431437828,-155.65304149,0.00022998,2]
[310271851,1704431437837,-201.28762865,0.00022998,2]
[310271852,1704431437847,-155.48129401,0.00022998,2]
[310271853,1704431437856,-700.30267819,0.00022998,2]
[310271854,1704431437866,-2012.33771706,0.00022998,2]
[310271855,1704431437875,-181.54128505,0.00022998,2]
[310271856,1704431437897,-68.92910584,0.00022998,2]
[310271857,1704431437906,-155.57715187,0.00022998,2]
[310271858,1704431437916,-156.56986718,0.00022998,2]
[310271859,1704431437926,-2149.70140419,0.00022998,2]
[310271860,1704431437936,-155.77084206,0.00022998,2]
[310271861,1704431437950,-66111.38208193,0.00022998,2]
[310271862,1704431437960,-150.0,0.00022998,2]
[310271863,1704431437969,-182.83552799,0.00022999,2]
[310271864,1704431437978,-155.89157788,0.00022999,2]
[310271865,1704431437987,-155.45248469,0.00022999,2]
[310271866,1704431437996,-164.15153233,0.00022999,2]
[310271867,1704431438005,-197.12332472,0.00022999,2]
[310271868,1704431438015,-155.77765896,0.00022999,2]
[310271869,1704431438025,-248.76340651,0.00022999,2]
[310271870,1704431438035,-5329.4952476,0.00022999,2]
[310271871,1704431438047,-702.09172964,0.00022999,2]
[310271872,1704431438057,-155.95348117,0.00022999,2]
[310271873,1704431438070,-588.83361847,0.00022999,2]
[310271874,1704431438080,-161.556012,0.00022999,2]
[310271875,1704431438091,-156.24525938,0.00022999,2]
[310271876,1704431438101,-240.63660894,0.00022999,2]
[310271877,1704431438110,-262.70133331,0.00022999,2]
[310271878,1704431438120,-155.60221481,0.00022999,2]
[310271879,1704431438134,-3622.3516387,0.00022999,2]
[310271880,1704431438144,-268.16199084,0.00022999,2]
[310271881,1704431438153,-222.23852564,0.00022999,2]
[310271882,1704431438162,-226.77425392,0.00022999,2]
[310271883,1704431438171,-247.9000583,0.00022999,2]
[310271884,1704431438181,-2148.91640678,0.00022999,2]
[310271885,1704431438191,-1054263.9214738,0.00022999,2]